fUSD/lending_fUSD_20250329
["ID","MTS","AMOUNT","RATE_DAILY","PERIOD"]
[356812800,1743238242233,-234.49880216,0.00039725,30]
[356812801,1743238242243,-500.0,0.00039725,30]
[356812802,1743238242252,-492.28,0.00039725,30]
[356812803,1743238242262,-518.21886529,0.00039725,30]
[356812804,1743238242271,-500.0,0.00039725,30]
[356812805,1743238242280,-500.0,0.00039725,30]
[356812806,1743238242289,-500.0,0.00039725,30]
[356812807,1743238242298,-1649.88,0.00039725,30]
[356812808,1743238242308,-500.0,0.00039725,30]
[356812809,1743238242317,-344.33238936,0.00039725,30]
[356812810,1743238242327,-500.0,0.00039725,30]
[356812811,1743238242336,-500.0,0.00039726,30]
[356812812,1743238242345,-500.0,0.00039726,2]
[356812813,1743238242355,-500.0,0.00039726,30]
[356812814,1743238242364,-500.0,0.00039726,30]
[356812815,1743238242374,-500.0,0.00039998,30]
[356812816,1743238242383,-500.0,0.00039998,30]
[356812817,1743238242393,-229.0231299,0.00039998,30]
[356812818,1743238242402,-2345.84,0.00039998,30]
[356812819,1743238242411,-500.0,0.00039998,30]
[356812820,1743238242421,-500.0,0.00039998,30]
[356812821,1743238242430,-500.0,0.00039998,30]
[356812822,1743238242440,-500.0,0.00039998,30]
[356812823,1743238242449,-500.0,0.00039998,30]
[356812824,1743238242460,-500.0,0.00039998,30]
[356812825,1743238242471,-500.0,0.00039998,30]
[356812826,1743238242480,-500.0,0.00039998,30]
[356812827,1743238242489,-500.0,0.00039998,30]
[356812828,1743238242499,-1464.95,0.00039998,30]
[356812829,1743238242508,-500.0,0.00039998,30]
[356812830,1743238242518,-570.25533098,0.00039998,30]
[356812831,1743238242527,-500.0,0.00039998,30]
[356812832,1743238242537,-500.0,0.00039998,30]
[356812833,1743238242546,-500.0,0.00039998,30]
[356812834,1743238242556,-2155.0,0.00039998,30]
[356812835,1743238242566,-500.0,0.00039998,30]
[356812836,1743238242575,-500.0,0.00039998,30]
[356812837,1743238242585,-418.84664448,0.00039998,30]
[356812838,1743238242595,-500.0,0.00039998,30]
[356812839,1743238242605,-500.0,0.00039998,30]
[356812840,1743238242615,-500.0,0.00039998,30]
[356812841,1743238242625,-500.0,0.00039998,30]
[356812842,1743238242634,-317.68834678,0.00039998,30]
[356812843,1743238242644,-500.0,0.00039998,30]
[356812844,1743238242654,-344.387905,0.00039998,30]
[356812845,1743238242663,-603.65289622,0.00039998,30]
[356812846,1743238242673,-500.0,0.00039998,30]
[356812847,1743238242684,-500.0,0.00039998,30]
[356812848,1743238242695,-500.0,0.00039999,30]
[356812849,1743238242706,-500.0,0.00039999,30]
[356812850,1743238242716,-500.0,0.00039999,30]
[356812851,1743238242725,-634.48,0.00039999,7]
[356812852,1743238242736,-524.68,0.00039999,30]
[356812853,1743238242745,-500.0,0.00039999,30]
[356812854,1743238242755,-570.3,0.00039999,30]
[356812855,1743238242766,-500.0,0.00039999,30]
[356812856,1743238242776,-769.84,0.00039999,30]
[356812857,1743238242787,-500.0,0.00039999,30]
[356812858,1743238242796,-519.05,0.00039999,30]
[356812859,1743238242805,-861.28,0.00039999,30]
[356812860,1743238242815,-500.0,0.00039999,30]
[356812861,1743238242825,-289.94,0.00039999,30]
[356812862,1743238242835,-500.0,0.00039999,30]
[356812863,1743238242845,-596.13,0.00039999,30]
[356812864,1743238242855,-500.0,0.00039999,30]
[356812865,1743238242865,-500.0,0.00039999,30]
[356812866,1743238242874,-500.0,0.00039999,30]
[356812867,1743238242883,-500.0,0.00039999,30]
[356812868,1743238242893,-500.0,0.00039999,30]
[356812869,1743238242902,-474.18372691,0.00039999,30]
[356812870,1743238242911,-500.0,0.00039999,30]
[356812871,1743238242920,-500.0,0.00039999,30]
[356812872,1743238242930,-1649.88,0.00039999,30]
[356812873,1743238242939,-500.0,0.00039999,30]
[356812874,1743238242949,-3646.42188451,0.0004,4]
[356812875,1743238242958,-500.0,0.0004,30]
[356812876,1743238242969,-500.0,0.0004,2]
[356812877,1743238242979,-500.0,0.0004,30]
[356812878,1743238242988,-500.0,0.0004,30]
[356812879,1743238242998,-21613.1441882,0.00040263,3]
[356812880,1743238243009,-500.0,0.00040272,30]
[356812881,1743238243018,-500.0,0.00040272,30]
[356812882,1743238243027,-2345.84,0.00040272,30]
[356812883,1743238243037,-500.0,0.00040272,30]
[356812884,1743238243046,-500.0,0.00040272,30]
[356812885,1743238243056,-500.0,0.00040272,30]
[356812886,1743238243066,-500.0,0.00040272,30]
[356812887,1743238243076,-500.0,0.00040272,30]
[356812888,1743238243086,-500.0,0.00040272,30]
[356812889,1743238243095,-1464.95,0.00040272,30]
[356812890,1743238243105,-500.0,0.00040272,30]
[356812891,1743238243115,-500.0,0.00040272,30]
[356812892,1743238243125,-500.0,0.00040272,30]
[356812893,1743238243135,-2155.0,0.00040272,30]
[356812894,1743238243144,-500.0,0.00040272,30]
[356812895,1743238243154,-500.0,0.00040272,30]
[356812896,1743238243163,-500.0,0.00040272,30]
[356812897,1743238243173,-500.0,0.00040272,30]
[356812898,1743238243183,-500.0,0.00040272,30]
[356812899,1743238243192,-500.0,0.00040272,30]
[356812900,1743238243202,-344.387905,0.00040272,30]
[356812901,1743238243211,-173.61027,0.00040272,30]
[356812902,1743238243222,-500.0,0.00040272,30]
[356812903,1743238243231,-500.0,0.00040272,30]
[356812904,1743238243241,-500.0,0.00040273,30]
[356812905,1743238243251,-500.0,0.00040273,2]
[356812907,1743238243261,-500.0,0.00040273,30]
[356812909,1743238243270,-500.0,0.00040273,30]
[356812910,1743238243279,-426.42,0.00040273,30]
[356812913,1743238243289,-500.0,0.00040273,30]
[356812915,1743238243298,-500.0,0.00040273,30]
[356812918,1743238243308,-634.48,0.00040273,7]
[356812921,1743238243318,-524.68,0.00040273,30]
[356812922,1743238243328,-500.0,0.00040273,30]
[356812923,1743238243337,-570.3,0.00040273,30]
[356812924,1743238243346,-769.84,0.00040273,30]
[356812926,1743238243356,-393.64319945,0.00040273,30]
[356812928,1743238243365,-500.0,0.00040273,30]
[356812936,1743238243516,-861.28,0.00040273,30]
[356812937,1743238243526,-500.0,0.00040273,30]
[356812938,1743238243536,-500.0,0.00040273,30]
[356812939,1743238243546,-596.13,0.00040273,30]
[356812940,1743238243556,-500.0,0.00040273,30]
[356812941,1743238243566,-500.0,0.00040273,30]
[356812942,1743238243575,-500.0,0.00040273,30]
[356812943,1743238243584,-500.0,0.00040273,30]
[356812944,1743238243594,-173.8,0.00040273,30]
[356812945,1743238243604,-500.0,0.00040273,30]
[356812946,1743238243614,-1649.88,0.00040273,30]
[356812947,1743238243624,-500.0,0.00040273,30]
[356812948,1743238243633,-683.71214159,0.00040446,15]
[356812949,1743238243643,-21613.1441882,0.00040537,3]
[356812950,1743238243653,-500.0,0.00040546,30]
[356812951,1743238243663,-500.0,0.00040546,30]
[356812952,1743238243673,-2345.84,0.00040546,30]
[356812953,1743238243682,-500.0,0.00040546,30]
[356812954,1743238243694,-500.0,0.00040546,30]
[356812955,1743238243706,-500.0,0.00040546,30]
[356812956,1743238243716,-500.0,0.00040546,30]
[356812957,1743238243726,-1464.95,0.00040546,30]
[356812958,1743238243736,-500.0,0.00040546,30]
[356812959,1743238243746,-500.0,0.00040546,30]
[356812960,1743238243756,-500.0,0.00040546,30]
[356812961,1743238243765,-2155.0,0.00040546,30]
[356812962,1743238243775,-500.0,0.00040546,30]
[356812963,1743238243785,-500.0,0.00040546,30]
[356812964,1743238243794,-500.0,0.00040546,30]
[356812965,1743238243803,-500.0,0.00040546,30]
[356812966,1743238243812,-479.1778907,0.00040546,30]
[356812967,1743238243821,-500.0,0.00040546,30]
[356812968,1743238243830,-500.0,0.00040546,30]
[356812970,1743238243840,-500.0,0.00040546,30]
[356812971,1743238243849,-500.0,0.00040547,30]
[356812973,1743238243858,-500.0,0.00040547,2]
[356812974,1743238243868,-279.5,0.00040547,30]
[356812975,1743238243877,-500.0,0.00040547,30]
[356812976,1743238243888,-227.08,0.00040547,30]
[356812977,1743238243898,-500.0,0.00040547,30]
[356812978,1743238243908,-634.48,0.00040547,7]
[356812979,1743238243917,-524.68,0.00040547,30]
[356812980,1743238243927,-290.48,0.00040547,30]
[356812981,1743238243936,-570.3,0.00040547,30]
[356812982,1743238243945,-769.84,0.00040547,30]
[356812983,1743238243955,-612.99492783,0.00040547,30]
[356812984,1743238243964,-861.28,0.00040547,30]
[356812985,1743238243974,-500.0,0.00040547,30]
[356812986,1743238243983,-500.0,0.00040547,30]
[356812987,1743238243993,-596.13,0.00040547,30]
[356812988,1743238244002,-293.55734325,0.00040547,30]
[356812989,1743238244011,-500.0,0.00040547,30]
[356812990,1743238244021,-374.52,0.00040547,30]
[356812991,1743238244031,-278.55145993,0.00040547,30]
[356812992,1743238244041,-587.52689884,0.00040547,30]
[356812993,1743238244051,-1649.88,0.00040547,30]
[356812994,1743238244061,-500.0,0.00040547,30]
[356812995,1743238244070,-785.15201478,0.0004072,13]
[356812996,1743238244079,-500.0,0.00040744,5]
[356812997,1743238244089,-21613.1441882,0.00040811,3]
[356812998,1743238244098,-500.0,0.00040818,30]
[356812999,1743238244108,-508.27212886,0.00040819,30]
[356813000,1743238244117,-310.16793967,0.00040819,30]
[356813001,1743238244127,-500.0,0.00040819,30]
[356813002,1743238244136,-500.0,0.00040819,30]
[356813003,1743238244146,-500.0,0.00040819,30]
[356813004,1743238244155,-500.0,0.0004082,30]
[356813005,1743238244164,-500.0,0.0004082,30]
[356813006,1743238244174,-2345.84,0.0004082,30]
[356813007,1743238244183,-500.0,0.0004082,30]
[356813008,1743238244192,-500.0,0.0004082,30]
[356813009,1743238244202,-332.26967795,0.0004082,30]
[356813010,1743238244211,-500.0,0.0004082,30]
[356813011,1743238244220,-1464.95,0.0004082,30]
[356813012,1743238244230,-500.0,0.0004082,30]
[356813013,1743238244239,-536.14739445,0.0004082,30]
[356813014,1743238244249,-614.42795767,0.0004082,30]
[356813015,1743238244258,-2155.0,0.0004082,30]
[356813016,1743238244268,-500.0,0.0004082,30]
[356813017,1743238244278,-500.0,0.0004082,30]
[356813018,1743238244288,-500.0,0.0004082,30]
[356813019,1743238244299,-500.0,0.0004082,30]
[356813020,1743238244308,-500.0,0.0004082,30]
[356813021,1743238244318,-500.0,0.0004082,30]
[356813022,1743238244328,-500.0,0.0004082,30]
[356813023,1743238244338,-500.0,0.00040821,30]
[356813024,1743238244347,-500.0,0.00040821,2]
[356813025,1743238244356,-519.84,0.00040821,30]
[356813026,1743238244367,-500.0,0.00040821,30]
[356813027,1743238244376,-634.48,0.00040821,7]
[356813028,1743238244386,-524.68,0.00040821,30]
[356813029,1743238244396,-570.3,0.00040821,30]
[356813030,1743238244405,-769.84,0.00040821,30]
[356813031,1743238244415,-861.28,0.00040821,30]
[356813032,1743238244425,-500.0,0.00040821,30]
[356813033,1743238244435,-202.01592471,0.00040821,30]
[356813034,1743238244446,-596.13,0.00040821,30]
[356813035,1743238244455,-500.0,0.00040821,30]
[356813036,1743238244465,-1649.88,0.00040821,30]
[356813037,1743238244474,-500.0,0.00040821,30]
[356813038,1743238244484,-157.0,0.00041,14]
[356813039,1743238244494,-21613.1441882,0.00041085,3]
[356813040,1743238244504,-500.0,0.00041093,30]
[356813041,1743238244514,-500.0,0.00041093,30]
[356813042,1743238244524,-500.0,0.00041094,30]
[356813043,1743238244534,-587.03673981,0.00041094,30]
[356813044,1743238244543,-2345.84,0.00041094,30]
[356813045,1743238244554,-500.0,0.00041094,30]
[356813046,1743238244564,-500.0,0.00041094,30]
[356813047,1743238244574,-1464.95,0.00041094,30]
[356813048,1743238244584,-500.0,0.00041094,30]
[356813049,1743238244594,-2155.0,0.00041094,30]
[356813050,1743238244604,-500.0,0.00041094,30]
[356813051,1743238244615,-500.0,0.00041094,30]
[356813052,1743238244625,-500.0,0.00041094,30]
[356813053,1743238244635,-500.0,0.00041094,30]
[356813054,1743238244645,-500.0,0.00041094,30]
[356813055,1743238244655,-500.0,0.00041094,30]
[356813056,1743238244665,-500.0,0.00041094,30]
[356813057,1743238244676,-500.0,0.00041095,30]
[356813058,1743238244686,-500.0,0.00041095,2]
[356813059,1743238244698,-500.0,0.00041095,30]
[356813060,1743238244709,-634.48,0.00041095,7]
[356813061,1743238244719,-524.68,0.00041095,30]
[356813062,1743238244729,-570.3,0.00041095,30]
[356813063,1743238244739,-769.84,0.00041095,30]
[356813064,1743238244751,-861.28,0.00041095,30]
[356813065,1743238244761,-500.0,0.00041095,30]
[356813066,1743238244772,-596.13,0.00041095,30]
[356813067,1743238244783,-500.0,0.00041095,30]
[356813068,1743238244793,-1649.88,0.00041095,30]
[356813069,1743238244803,-500.0,0.00041095,30]
[356813070,1743238244813,-500.0,0.00041367,30]
[356813071,1743238244823,-387.66274921,0.00041368,30]
[356813072,1743238244833,-2345.84,0.00041368,30]
[356813073,1743238244843,-500.0,0.00041368,30]
[356813074,1743238244852,-500.0,0.00041368,30]
[356813075,1743238244862,-1464.95,0.00041368,30]
[356813076,1743238244871,-500.0,0.00041368,30]
[356813077,1743238244882,-2155.0,0.00041368,30]
[356813078,1743238244892,-500.0,0.00041368,30]
[356813079,1743238244902,-500.0,0.00041368,30]
[356813080,1743238244912,-500.0,0.00041368,30]
[356813081,1743238244922,-500.0,0.00041368,30]
[356813082,1743238244931,-500.0,0.00041368,30]
[356813083,1743238244941,-500.0,0.00041368,30]
[356813084,1743238244952,-500.0,0.00041368,30]
[356813085,1743238244962,-500.0,0.00041369,30]
[356813086,1743238244972,-500.0,0.00041369,2]
[356813087,1743238244983,-500.0,0.00041369,30]
[356813088,1743238244992,-634.48,0.00041369,7]
[356813089,1743238245001,-524.68,0.00041369,30]
[356813090,1743238245011,-570.3,0.00041369,30]
[356813091,1743238245021,-769.84,0.00041369,30]
[356813092,1743238245030,-861.28,0.00041369,30]
[356813093,1743238245040,-500.0,0.00041369,30]
[356813094,1743238245050,-596.13,0.00041369,30]
[356813095,1743238245060,-500.0,0.00041369,30]
[356813096,1743238245069,-1649.88,0.00041369,30]
[356813097,1743238245079,-500.0,0.00041369,30]
[356813098,1743238245089,-21613.1441882,0.00041613,3]
[356813099,1743238245099,-2345.84,0.00041642,30]
[356813100,1743238245109,-500.0,0.00041642,30]
[356813101,1743238245118,-500.0,0.00041642,30]
[356813102,1743238245129,-1464.95,0.00041642,30]
[356813103,1743238245138,-500.0,0.00041642,30]
[356813104,1743238245148,-2155.0,0.00041642,30]
[356813105,1743238245158,-500.0,0.00041642,30]
[356813106,1743238245168,-500.0,0.00041642,30]
[356813107,1743238245177,-500.0,0.00041642,30]
[356813108,1743238245187,-187.2431519,0.00041642,30]
[356813109,1743238245197,-500.0,0.00041642,30]
[356813110,1743238245208,-380.3,0.00041642,30]
[356813111,1743238245217,-500.0,0.00041642,30]
[356813112,1743238245227,-565.0,0.00041643,7]
[356813113,1743238245237,-500.0,0.00041643,30]
[356813114,1743238245246,-500.0,0.00041643,2]
[356813115,1743238245256,-500.0,0.00041643,30]
[356813116,1743238245265,-634.48,0.00041643,7]
[356813117,1743238245275,-524.68,0.00041643,30]
[356813118,1743238245285,-570.3,0.00041643,30]
[356813119,1743238245294,-769.84,0.00041643,30]
[356813120,1743238245304,-861.28,0.00041643,30]
[356813121,1743238245313,-500.0,0.00041643,30]
[356813122,1743238245323,-596.13,0.00041643,30]
[356813123,1743238245334,-500.0,0.00041643,30]
[356813124,1743238245343,-1649.88,0.00041643,30]
[356813125,1743238245353,-500.0,0.00041643,30]
[356813126,1743238245362,-683.71214156,0.00041832,15]
[356813127,1743238245372,-21613.1441882,0.00041887,3]
[356813128,1743238245381,-247.77,0.00041901,2]
[356813129,1743238245391,-2345.84,0.00041916,30]
[356813130,1743238245400,-500.0,0.00041916,30]
[356813131,1743238245410,-500.0,0.00041916,30]
[356813132,1743238245421,-1464.95,0.00041916,30]
[356813133,1743238245430,-500.0,0.00041916,30]
[356813134,1743238245440,-2155.0,0.00041916,30]
[356813135,1743238245449,-500.0,0.00041916,30]
[356813136,1743238245459,-500.0,0.00041916,30]
[356813137,1743238245468,-500.0,0.00041916,30]
[356813138,1743238245478,-500.0,0.00041916,30]
[356813139,1743238245488,-500.0,0.00041916,30]
[356813140,1743238245498,-500.0,0.00041917,30]
[356813141,1743238245507,-500.0,0.00041917,2]
[356813142,1743238245517,-500.0,0.00041917,30]
[356813143,1743238245526,-634.48,0.00041917,7]
[356813144,1743238245536,-524.68,0.00041917,30]
[356813145,1743238245546,-570.3,0.00041917,30]
[356813146,1743238245555,-769.84,0.00041917,30]
[356813147,1743238245565,-861.28,0.00041917,30]
[356813148,1743238245575,-500.0,0.00041917,30]
[356813149,1743238245585,-596.13,0.00041917,30]
[356813150,1743238245595,-376.74242495,0.00041917,30]
[356813151,1743238245604,-1649.88,0.00041917,30]
[356813152,1743238245613,-500.0,0.00041917,30]
[356813153,1743238245623,-500.0,0.00042012,30]
[356813154,1743238245632,-7647.02588376,0.00042178,120]
[356813155,1743238245642,-500.0,0.0004219,30]
[356813156,1743238245652,-2345.84,0.0004219,30]
[356813157,1743238245661,-500.0,0.0004219,30]
[356813158,1743238245671,-500.0,0.0004219,30]
[356813159,1743238245681,-1464.95,0.0004219,30]
[356813160,1743238245690,-337.10978994,0.0004219,30]
[356813161,1743238245704,-2155.0,0.0004219,30]
[356813162,1743238245714,-500.0,0.0004219,30]
[356813163,1743238245723,-500.0,0.0004219,30]
[356813164,1743238245734,-500.0,0.0004219,30]
[356813165,1743238245743,-500.0,0.0004219,30]
[356813166,1743238245753,-404.92,0.0004219,30]
[356813167,1743238245763,-313.93784018,0.00042191,30]
[356813168,1743238245772,-235.32246463,0.00042191,2]
[356813169,1743238245783,-500.0,0.00042191,30]
[356813170,1743238245792,-634.48,0.00042191,7]
[356813171,1743238245802,-524.68,0.00042191,30]
[356813172,1743238245811,-570.3,0.00042191,30]
[356813173,1743238245821,-769.84,0.00042191,30]
[356813174,1743238245831,-861.28,0.00042191,30]
[356813175,1743238245840,-500.0,0.00042191,30]
[356813176,1743238245850,-596.13,0.00042191,30]
[356813177,1743238245861,-1649.88,0.00042191,30]
[356813178,1743238245870,-245.3,0.00042191,30]
[356813179,1743238245880,-21613.1441882,0.00042433,3]
[356813180,1743238245930,-2731.95647398,0.00042433,3]
[356813181,1743238245950,-1253.18131973,0.00042433,3]
[356813182,1743238245982,-500.0,0.00039724,30]
[356813183,1743238245992,-13487.91735299,0.00042433,3]
[356813184,1743238246001,-2345.84,0.00042464,30]
[356813185,1743238246011,-500.0,0.00042464,30]
[356813186,1743238246020,-500.0,0.00042464,30]
[356813187,1743238246030,-1464.95,0.00042464,30]
[356813188,1743238246039,-2155.0,0.00042464,30]
[356813189,1743238246049,-500.0,0.00042464,30]
[356813190,1743238246058,-500.0,0.00042464,30]
[356813191,1743238246067,-500.0,0.00042464,30]
[356813192,1743238246077,-500.0,0.00042465,30]
[356813193,1743238246087,-634.48,0.00042465,7]
[356813194,1743238246096,-524.68,0.00042465,30]
[356813195,1743238246105,-570.3,0.00042465,30]
[356813196,1743238246114,-769.84,0.00042465,30]
[356813197,1743238246123,-861.28,0.00042465,30]
[356813198,1743238246132,-500.0,0.00042465,30]
[356813199,1743238246141,-596.13,0.00042465,30]
[356813200,1743238246149,-1649.88,0.00042465,30]
[356813201,1743238246158,-6929.99437398,0.00042729,3]
[356813202,1743238246175,-557.05910618,0.00042729,3]
[356813204,1743238246187,-14126.09070804,0.00042729,3]
[356813206,1743238246196,-2345.84,0.00042738,30]
[356813207,1743238246206,-500.0,0.00042738,30]
[356813208,1743238246215,-500.0,0.00042738,30]
[356813209,1743238246225,-1464.95,0.00042738,30]
[356813210,1743238246234,-2155.0,0.00042738,30]
[356813211,1743238246243,-500.0,0.00042738,30]
[356813212,1743238246253,-500.0,0.00042738,30]
[356813213,1743238246263,-319.92756076,0.00042738,30]
[356813214,1743238246272,-500.0,0.00042739,30]
[356813215,1743238246281,-634.48,0.00042739,7]
[356813216,1743238246291,-524.68,0.00042739,30]
[356813217,1743238246300,-570.3,0.00042739,30]
[356813218,1743238246310,-769.84,0.00042739,30]
[356813219,1743238246319,-861.28,0.00042739,30]
[356813220,1743238246328,-500.0,0.00042739,30]
[356813221,1743238246338,-596.13,0.00042739,30]
[356813222,1743238246347,-1649.88,0.00042739,30]
[356813223,1743238246356,-17473.0551467,0.00042972,3]
[356813224,1743238246366,-21613.1441882,0.00043012,3]
[356813225,1743238246376,-2345.84,0.00043012,30]
[356813226,1743238246385,-500.0,0.00043012,30]
[356813227,1743238246395,-500.0,0.00043012,30]
[356813228,1743238246405,-1464.95,0.00043012,30]
[356813229,1743238246415,-2155.0,0.00043012,30]
[356813230,1743238246424,-500.0,0.00043012,30]
[356813231,1743238246433,-500.0,0.00043012,30]
[356813232,1743238246441,-500.0,0.00043013,30]
[356813233,1743238246451,-634.48,0.00043013,7]
[356813234,1743238246461,-524.68,0.00043013,30]
[356813235,1743238246470,-570.3,0.00043013,30]
[356813236,1743238246480,-769.84,0.00043013,30]
[356813237,1743238246490,-861.28,0.00043013,30]
[356813238,1743238246500,-500.0,0.00043013,30]
[356813239,1743238246510,-596.13,0.00043013,30]
[356813240,1743238246519,-1649.88,0.00043013,30]
[356813241,1743238246529,-500.0,0.00043022,30]
[356813242,1743238246539,-157.0,0.00043151,90]
[356813243,1743238246549,-683.71214156,0.00043218,15]
[356813244,1743238246558,-17473.0551467,0.00043257,3]
[356813245,1743238246568,-2345.84,0.00043286,30]
[356813246,1743238246577,-500.0,0.00043286,30]
[356813247,1743238246587,-500.0,0.00043286,30]
[356813248,1743238246596,-1464.95,0.00043286,30]
[356813249,1743238246605,-2155.0,0.00043286,30]
[356813250,1743238246615,-500.0,0.00043286,30]
[356813251,1743238246624,-500.0,0.00043286,30]
[356813252,1743238246634,-500.0,0.00043287,30]
[356813253,1743238246645,-634.48,0.00043287,7]
[356813254,1743238246655,-524.68,0.00043287,30]
[356813255,1743238246665,-570.3,0.00043287,30]
[356813256,1743238246675,-769.84,0.00043287,30]
[356813257,1743238246686,-861.28,0.00043287,30]
[356813258,1743238246697,-500.0,0.00043287,30]
[356813259,1743238246708,-596.13,0.00043287,30]
[356813260,1743238246717,-1649.88,0.00043287,30]
[356813261,1743238246727,-17473.0551467,0.00043413,3]
[356813262,1743238246737,-1000.0,0.00043515,2]
[356813263,1743238246747,-21613.1441882,0.00043551,3]
[356813264,1743238246757,-2345.84,0.0004356,30]
[356813265,1743238246767,-500.0,0.0004356,30]
[356813266,1743238246778,-500.0,0.0004356,30]
[356813267,1743238246788,-1464.95,0.0004356,30]
[356813268,1743238246797,-2155.0,0.0004356,30]
[356813269,1743238246807,-500.0,0.0004356,30]
[356813270,1743238246817,-500.0,0.0004356,30]
[356813271,1743238246827,-500.0,0.00043561,30]
[356813272,1743238246840,-634.48,0.00043561,7]
[356813273,1743238246849,-524.68,0.00043561,30]
[356813274,1743238246861,-570.3,0.00043561,30]
[356813275,1743238246871,-769.84,0.00043561,30]
[356813276,1743238246880,-861.28,0.00043561,30]
[356813277,1743238246890,-500.0,0.00043561,30]
[356813278,1743238246899,-596.13,0.00043561,30]
[356813279,1743238246909,-1649.88,0.00043561,30]
[356813280,1743238246918,-500.0,0.00043667,30]
[356813281,1743238246927,-17473.0551467,0.00043678,3]
[356813282,1743238246937,-500.0,0.00043812,30]
[356813283,1743238246946,-21613.1441882,0.00043825,3]
[356813284,1743238246956,-500.0,0.00043834,30]
[356813285,1743238246965,-2345.84,0.00043834,30]
[356813286,1743238246976,-500.0,0.00043834,30]
[356813287,1743238246986,-1464.95,0.00043834,30]
[356813288,1743238246995,-2155.0,0.00043834,30]
[356813289,1743238247005,-500.0,0.00043834,30]
[356813290,1743238247015,-179.0234063,0.00043834,30]
[356813291,1743238247025,-500.0,0.00043835,30]
[356813292,1743238247036,-634.48,0.00043835,7]
[356813293,1743238247045,-524.68,0.00043835,30]
[356813294,1743238247055,-570.3,0.00043835,30]
[356813295,1743238247064,-769.84,0.00043835,30]
[356813296,1743238247074,-861.28,0.00043835,30]
[356813297,1743238247083,-500.0,0.00043835,30]
[356813298,1743238247092,-596.13,0.00043835,30]
[356813299,1743238247102,-1649.88,0.00043835,30]
[356813300,1743238247111,-939.0,0.00043907,30]
[356813301,1743238247120,-17473.0551467,0.0004396,3]
[356813302,1743238247130,-21613.1441882,0.0004398,3]
[356813303,1743238247139,-209.92267393,0.0004398,30]
[356813304,1743238247147,-17473.0551467,0.0004399,3]
[356813305,1743238247157,-1184.42146445,0.00044,30]
[356813306,1743238247166,-25361.94405797,0.00044,4]
[356813307,1743238247176,-9988.89543611,0.00044099,3]
[356813309,1743238247189,-11624.24875209,0.00044099,3]
[356813310,1743238247198,-494.1477575,0.00044108,30]
[356813311,1743238247207,-2345.84,0.00044108,30]
[356813312,1743238247217,-500.0,0.00044108,30]
[356813313,1743238247227,-1464.95,0.00044108,30]
[356813314,1743238247236,-2155.0,0.00044108,30]
[356813315,1743238247246,-500.0,0.00044108,30]
[356813316,1743238247255,-500.0,0.00044109,30]
[356813317,1743238247265,-634.48,0.00044109,7]
[356813318,1743238247274,-524.68,0.00044109,30]
[356813319,1743238247283,-570.3,0.00044109,30]
[356813320,1743238247293,-769.84,0.00044109,30]
[356813321,1743238247303,-861.28,0.00044109,30]
[356813322,1743238247312,-500.0,0.00044109,30]